[Event "*** Titled Tuesday Blitz"]
[Site "Chess.com"]
[Date "2019.02.05"]
[Round "8"]
[White "Supelyel"]
[Black "TakeMyPieces97"]
[Result "0-1"]
[WhiteElo "2318"]
[BlackElo "2273"]
[TimeControl "180+2"]
[EndTime "14:59:43 PST"]
[Termination "TakeMyPieces97 won by resignation"]

1. c4 {[%clk 0:03:01.9]} 1... g6 {[%clk 0:02:59.8]} 2. Nf3 {[%clk 0:03:01.9]}
2... Bg7 {[%clk 0:03:01.7]} 3. g3 {[%clk 0:03:03.1]} 3... Nc6 {[%clk 0:02:58.5]}
4. Bg2 {[%clk 0:03:03.7]} 4... e5 {[%clk 0:02:59.7]} 5. Nc3 {[%clk 0:03:03.7]}
5... d6 {[%clk 0:03:00.7]} 6. d3 {[%clk 0:03:03.5]} 6... Nge7 {[%clk 0:03:02.1]}
7. O-O {[%clk 0:03:03.4]} 7... O-O {[%clk 0:03:03.6]} 8. Rb1 {[%clk 0:02:55.9]}
8... f5 {[%clk 0:03:04.4]} 9. Bg5 {[%clk 0:02:55.5]} 9... h6 {[%clk 0:03:03.7]}
10. Bxe7 {[%clk 0:02:56.5]} 10... Nxe7 {[%clk 0:03:05.5]} 11. Qc2 {[%clk
0:02:57.6]} 11... g5 {[%clk 0:03:05.4]} 12. b4 {[%clk 0:02:56.9]} 12... Ng6
{[%clk 0:03:03]} 13. Nd2 {[%clk 0:02:52.8]} 13... f4 {[%clk 0:03:03]} 14. c5
{[%clk 0:02:53.7]} 14... g4 {[%clk 0:03:01.2]} 15. cxd6 {[%clk 0:02:54]} 15...
cxd6 {[%clk 0:03:01]} 16. d4 {[%clk 0:02:35.8]} 16... Qg5 {[%clk 0:02:59.8]} 17.
dxe5 {[%clk 0:02:33.2]} 17... Bf5 {[%clk 0:02:50.4]} 18. Nce4 {[%clk 0:02:24.8]}
18... Qh5 {[%clk 0:02:47.8]} 19. exd6 {[%clk 0:02:13.7]} 19... Kh8 {[%clk
0:02:42.5]} 20. f3 {[%clk 0:02:04.9]} 20... Bd4+ {[%clk 0:02:37.1]} 21. Rf2
{[%clk 0:01:52.1]} 21... fxg3 {[%clk 0:02:29.8]} 22. hxg3 {[%clk 0:01:50.8]}
22... Nf4 {[%clk 0:02:13.7]} 23. Qc4 {[%clk 0:01:27.8]} 23... Bxf2+ {[%clk
0:02:01.3]} 24. Kxf2 {[%clk 0:01:20.7]} 24... Nxg2 {[%clk 0:02:02.2]} 25. Kxg2
{[%clk 0:01:07.4]} 25... gxf3+ {[%clk 0:02:02.8]} 26. exf3 {[%clk 0:01:02.4]}
26... Qh3+ {[%clk 0:01:44.2]} 27. Kf2 {[%clk 0:01:02.9]} 27... Qh2+ {[%clk
0:01:41.1]} 28. Ke3 {[%clk 0:01:03.7]} 28... Rae8 {[%clk 0:01:32.5]} 29. Qd4+
{[%clk 0:01:03.4]} 29... Kh7 {[%clk 0:01:30.2]} 30. d7 {[%clk 0:00:59.4]} 30...
Rd8 {[%clk 0:01:26.8]} 31. Rf1 {[%clk 0:00:27]} 31... Rxd7 {[%clk 0:01:24.9]}
32. Rf2 {[%clk 0:00:16.8]} 32... Rxd4 {[%clk 0:01:20.2]} 33. Rxh2 {[%clk
0:00:17.6]} 33... Rxb4 {[%clk 0:01:11.7]} 34. g4 {[%clk 0:00:18.9]} 34... Bg6
{[%clk 0:01:05.4]} 35. Ng5+ {[%clk 0:00:17.2]} 35... Kg8 {[%clk 0:01:03.1]} 36.
Rxh6 {[%clk 0:00:18.3]} 36... Kg7 {[%clk 0:00:50.3]} 37. Rh2 {[%clk 0:00:17]}
37... Re8+ {[%clk 0:00:50.7]} 38. Nde4 {[%clk 0:00:18.2]} 38... Ra4 {[%clk
0:00:47.7]} 39. Rb2 {[%clk 0:00:17.6]} 39... Ra3+ {[%clk 0:00:46.9]} 40. Kf4
{[%clk 0:00:18.8]} 40... b6 {[%clk 0:00:47.5]} 41. Rc2 {[%clk 0:00:19.5]} 41...
Re7 {[%clk 0:00:47.7]} 42. Rc6 {[%clk 0:00:18.9]} 42... Ra4 {[%clk 0:00:44.9]}
43. Kg3 {[%clk 0:00:20.2]} 43... Rxa2 {[%clk 0:00:39.6]} 44. Ne6+ {[%clk
0:00:21.3]} 44... Rxe6 {[%clk 0:00:28.6]} 45. Rxe6 {[%clk 0:00:22]} 45... Bxe4
{[%clk 0:00:27.2]} 46. Rxe4 {[%clk 0:00:23.9]} 46... a5 {[%clk 0:00:26.2]} 47.
Re7+ {[%clk 0:00:24.9]} 47... Kf6 {[%clk 0:00:26.3]} 48. Rb7 {[%clk 0:00:26.8]}
48... Rb2 {[%clk 0:00:27.2]} 49. Kf4 {[%clk 0:00:28.4]} 49... a4 {[%clk
0:00:27.9]} 50. Ra7 {[%clk 0:00:30]} 50... Rb4+ {[%clk 0:00:26]} 51. Kg3 {[%clk
0:00:31.4]} 51... Ke5 {[%clk 0:00:25.8]} 52. g5 {[%clk 0:00:32.4]} 52... Kf5
{[%clk 0:00:26.9]} 53. f4 {[%clk 0:00:32.7]} 53... Rb3+ {[%clk 0:00:27.8]} 54.
Kh4 {[%clk 0:00:33.7]} 54... Kxf4 {[%clk 0:00:23.2]} 55. Rxa4+ {[%clk
0:00:33.4]} 55... Kf5 {[%clk 0:00:24.6]} 56. Ra8 {[%clk 0:00:31.3]} 56... Rb1
{[%clk 0:00:21.7]} 57. Rf8+ {[%clk 0:00:31.6]} 57... Kg6 {[%clk 0:00:23]} 58.
Rf6+ {[%clk 0:00:32.6]} 58... Kg7 {[%clk 0:00:24.5]} 59. Rc6 {[%clk 0:00:33.8]}
59... b5 {[%clk 0:00:25.6]} 60. Kh5 {[%clk 0:00:35]} 60... Rh1+ {[%clk 0:00:26]}
61. Kg4 {[%clk 0:00:36.5]} 61... b4 {[%clk 0:00:27.2]} 62. Rb6 {[%clk
0:00:37.9]} 62... Rb1 {[%clk 0:00:28.1]} 63. Kf5 {[%clk 0:00:39.4]} 63... b3
{[%clk 0:00:29.1]} 64. Rb7+ {[%clk 0:00:40.9]} 64... Kf8 {[%clk 0:00:30.1]} 65.
Kf6 {[%clk 0:00:42.4]} 65... Rf1+ {[%clk 0:00:30.9]} 66. Kg6 {[%clk 0:00:43.8]}
66... Rf3 {[%clk 0:00:30.5]} 67. Kh6 {[%clk 0:00:43.6]} 67... Rh3+ {[%clk
0:00:30.8]} 68. Kg6 {[%clk 0:00:44.9]} 68... Rf3 {[%clk 0:00:32.4]} 69. Kh6
{[%clk 0:00:46.4]} 69... Rh3+ {[%clk 0:00:33]} 70. Kg6 {[%clk 0:00:47.9]} 70...
Rc3 {[%clk 0:00:33.9]} 71. Kh6 {[%clk 0:00:48.8]} 71... Ke8 {[%clk 0:00:32.4]}
72. g6 {[%clk 0:00:49.8]} 72... Rh3+ {[%clk 0:00:22]} 73. Kg5 {[%clk 0:00:50.8]}
73... Kf8 {[%clk 0:00:20.6]} 74. Kf6 {[%clk 0:00:50.8]} 74... Rf3+ {[%clk
0:00:21]} 75. Ke5 {[%clk 0:00:51.2]} 75... Kg8 {[%clk 0:00:21.7]} 76. g7 {[%clk
0:00:48.7]} 76... Rg3 {[%clk 0:00:22]} 77. Kf6 {[%clk 0:00:49.7]} 77... Rf3+
{[%clk 0:00:23.5]} 78. Kg6 {[%clk 0:00:51.1]} 78... Rg3+ {[%clk 0:00:24.5]} 79.
Kf6 {[%clk 0:00:52.6]} 79... Rf3+ {[%clk 0:00:25.8]} 80. Kg6 {[%clk 0:00:53.1]}
80... Rg3+ {[%clk 0:00:27.1]} 81. Kf6 {[%clk 0:00:54.6]} 81... Kh7 {[%clk
0:00:26.7]} 82. Kf7 {[%clk 0:00:50.6]} 82... Rxg7+ {[%clk 0:00:26.6]} 0-1

[Event "*** Titled Tuesday Blitz"]
[Site "Chess.com"]
[Date "2019.02.05"]
[Round "8"]
[White "evgenysharapov"]
[Black "mouseWLZ"]
[Result "0-1"]
[WhiteElo "2335"]
[BlackElo "2495"]
[TimeControl "180+2"]
[EndTime "14:59:50 PST"]
[Termination "mouseWLZ won by resignation"]

1. e4 {[%clk 0:03:01.9]} 1... e6 {[%clk 0:03:01.2]} 2. d4 {[%clk 0:03:01.2]}
2... d5 {[%clk 0:03:02.3]} 3. exd5 {[%clk 0:03:01.8]} 3... exd5 {[%clk
0:03:02.9]} 4. Bd3 {[%clk 0:03:02.8]} 4... c5 {[%clk 0:03:04.2]} 5. dxc5 {[%clk
0:02:58.7]} 5... Bxc5 {[%clk 0:03:04.5]} 6. Nf3 {[%clk 0:02:59]} 6... Ne7 {[%clk
0:02:59]} 7. O-O {[%clk 0:02:59]} 7... O-O {[%clk 0:02:59]} 8. Nbd2 {[%clk
0:02:59.3]} 8... Nbc6 {[%clk 0:02:51.7]} 9. Nb3 {[%clk 0:02:59.7]} 9... Bb6
{[%clk 0:02:49.5]} 10. h3 {[%clk 0:03:00.2]} 10... Ng6 {[%clk 0:02:47]} 11. c3
{[%clk 0:02:59.3]} 11... Re8 {[%clk 0:02:38.4]} 12. Nbd4 {[%clk 0:02:54.4]}
12... Nxd4 {[%clk 0:02:33]} 13. Nxd4 {[%clk 0:02:54.5]} 13... Qf6 {[%clk
0:02:34]} 14. Be3 {[%clk 0:02:52]} 14... Nf4 {[%clk 0:02:29]} 15. Bxf4 {[%clk
0:02:45.2]} 15... Qxf4 {[%clk 0:02:27.7]} 16. Qc2 {[%clk 0:02:38.6]} 16... g6
{[%clk 0:02:23.3]} 17. Rad1 {[%clk 0:02:38.5]} 17... Bd7 {[%clk 0:01:54]} 18.
Be2 {[%clk 0:02:38]} 18... Rac8 {[%clk 0:01:42.6]} 19. Qd2 {[%clk 0:02:30.3]}
19... Qf6 {[%clk 0:01:32.2]} 20. Bf3 {[%clk 0:02:24]} 20... Re5 {[%clk
0:01:28.5]} 21. Rfe1 {[%clk 0:02:20.3]} 21... Rce8 {[%clk 0:01:28.3]} 22. Rxe5
{[%clk 0:02:18.4]} 22... Rxe5 {[%clk 0:01:26.2]} 23. Qd3 {[%clk 0:01:44.1]}
23... Kg7 {[%clk 0:01:21.2]} 24. Kf1 {[%clk 0:01:42.7]} 24... h5 {[%clk
0:01:20.8]} 25. Re1 {[%clk 0:01:42.9]} 25... Rxe1+ {[%clk 0:01:09.3]} 26. Kxe1
{[%clk 0:01:43.2]} 26... Qe5+ {[%clk 0:00:45.9]} 27. Qe3 {[%clk 0:01:43.7]}
27... Qd6 {[%clk 0:00:36.6]} 28. a3 {[%clk 0:01:40.8]} 28... Bd8 {[%clk
0:00:37]} 29. Kf1 {[%clk 0:01:25.4]} 29... Bf6 {[%clk 0:00:35.8]} 30. Kg1 {[%clk
0:01:23.5]} 30... a6 {[%clk 0:00:37]} 31. Be2 {[%clk 0:01:23]} 31... Be5 {[%clk
0:00:20.9]} 32. Nf3 {[%clk 0:01:04.6]} 32... Bf6 {[%clk 0:00:22.1]} 33. Bd3
{[%clk 0:01:01.1]} 33... Bc8 {[%clk 0:00:19.4]} 34. Nd4 {[%clk 0:01:00.2]} 34...
Bd7 {[%clk 0:00:19.5]} 35. Nf3 {[%clk 0:00:58.7]} 35... Qc7 {[%clk 0:00:19.4]}
36. Nd4 {[%clk 0:00:55.8]} 36... Be5 {[%clk 0:00:16.6]} 37. Nf3 {[%clk
0:00:55.8]} 37... Bf6 {[%clk 0:00:17.8]} 38. Nd4 {[%clk 0:00:56.4]} 38... h4
{[%clk 0:00:19]} 39. Nf3 {[%clk 0:00:56.5]} 39... Qd6 {[%clk 0:00:20.4]} 40. Nd4
{[%clk 0:00:57.1]} 40... b5 {[%clk 0:00:21.7]} 41. Nf3 {[%clk 0:00:56.2]} 41...
a5 {[%clk 0:00:23.1]} 42. Nd4 {[%clk 0:00:56.8]} 42... b4 {[%clk 0:00:24.7]} 43.
axb4 {[%clk 0:00:57.5]} 43... axb4 {[%clk 0:00:26.6]} 44. Be2 {[%clk 0:00:51.2]}
44... bxc3 {[%clk 0:00:26.2]} 45. bxc3 {[%clk 0:00:51.4]} 45... Qb8 {[%clk
0:00:26.5]} 46. Qd3 {[%clk 0:00:35.7]} 46... Qf4 {[%clk 0:00:21.6]} 47. Qe3
{[%clk 0:00:36.2]} 47... Qc7 {[%clk 0:00:21.4]} 48. Bf3 {[%clk 0:00:35.2]} 48...
Qb7 {[%clk 0:00:18.9]} 49. Qd3 {[%clk 0:00:32.5]} 49... Qa8 {[%clk 0:00:18.2]}
50. Be2 {[%clk 0:00:29.2]} 50... Be5 {[%clk 0:00:18]} 51. Bf1 {[%clk 0:00:22.7]}
51... Qa1 {[%clk 0:00:16.9]} 52. Qe3 {[%clk 0:00:22.3]} 52... Bf6 {[%clk
0:00:16.5]} 53. Qf3 {[%clk 0:00:21.5]} 53... Bxd4 {[%clk 0:00:13]} 54. Qxd5
{[%clk 0:00:20.5]} 54... Bxf2+ {[%clk 0:00:04.7]} 55. Kxf2 {[%clk 0:00:20.4]}
55... Be6 {[%clk 0:00:05.7]} 56. Qd4+ {[%clk 0:00:21]} 56... Kg8 {[%clk
0:00:07.1]} 57. Be2 {[%clk 0:00:21.8]} 57... Qc1 {[%clk 0:00:06.5]} 58. Bf3
{[%clk 0:00:21.9]} 58... Qc2+ {[%clk 0:00:07.1]} 59. Be2 {[%clk 0:00:22.6]}
59... Qf5+ {[%clk 0:00:08.1]} 60. Bf3 {[%clk 0:00:22.7]} 60... Qg5 {[%clk
0:00:09]} 61. c4 {[%clk 0:00:20.9]} 61... Qg3+ {[%clk 0:00:10.1]} 62. Ke3 {[%clk
0:00:18.9]} 62... Qe1+ {[%clk 0:00:10.9]} 63. Be2 {[%clk 0:00:17.1]} 63... Qg1+
{[%clk 0:00:10.7]} 64. Kd3 {[%clk 0:00:17.6]} 64... Bf5+ {[%clk 0:00:12]} 65.
Kc3 {[%clk 0:00:18.4]} 65... Qa1+ {[%clk 0:00:13]} 0-1

[Event "*** Titled Tuesday Blitz"]
[Site "Chess.com"]
[Date "2019.02.05"]
[Round "8"]
[White "Peng_Li-Min"]
[Black "kuli4ik"]
[Result "1/2-1/2"]
[WhiteElo "2693"]
[BlackElo "2834"]
[TimeControl "180+2"]
[EndTime "15:00:14 PST"]
[Termination "Game drawn by stalemate"]

1. e4 {[%clk 0:03:00.2]} 1... e6 {[%clk 0:03:01.1]} 2. d4 {[%clk 0:03:00.7]}
2... d5 {[%clk 0:03:03]} 3. Nc3 {[%clk 0:03:01.6]} 3... Be7 {[%clk 0:03:04.5]}
4. Nf3 {[%clk 0:03:01.4]} 4... Nf6 {[%clk 0:03:05.1]} 5. Bd3 {[%clk 0:02:59.1]}
5... c5 {[%clk 0:03:06.1]} 6. exd5 {[%clk 0:02:56.8]} 6... exd5 {[%clk
0:03:06.2]} 7. O-O {[%clk 0:02:58.1]} 7... c4 {[%clk 0:03:06.1]} 8. Be2 {[%clk
0:02:57.7]} 8... O-O {[%clk 0:03:07.7]} 9. Ne5 {[%clk 0:02:48.2]} 9... Nc6
{[%clk 0:03:08.2]} 10. Bf4 {[%clk 0:02:46.5]} 10... Bb4 {[%clk 0:03:06.5]} 11.
Bf3 {[%clk 0:02:40.9]} 11... Be6 {[%clk 0:03:05.1]} 12. h3 {[%clk 0:02:38.2]}
12... Qb6 {[%clk 0:02:44.1]} 13. Nxc6 {[%clk 0:02:26.2]} 13... bxc6 {[%clk
0:02:38.7]} 14. Ne2 {[%clk 0:02:27.6]} 14... Bf5 {[%clk 0:02:32.9]} 15. b3
{[%clk 0:02:19.5]} 15... Qa6 {[%clk 0:02:32.9]} 16. Ng3 {[%clk 0:02:12.1]} 16...
Bg6 {[%clk 0:02:33.1]} 17. Bd2 {[%clk 0:02:07.7]} 17... Ba3 {[%clk 0:02:28.9]}
18. Rb1 {[%clk 0:01:57.7]} 18... Rfe8 {[%clk 0:02:26.7]} 19. Be2 {[%clk
0:01:56.9]} 19... Bd6 {[%clk 0:02:23.2]} 20. Ra1 {[%clk 0:01:17.1]} 20... Bxg3
{[%clk 0:02:20.4]} 21. fxg3 {[%clk 0:01:19]} 21... Ne4 {[%clk 0:02:22]} 22. Be1
{[%clk 0:01:17.7]} 22... Rad8 {[%clk 0:02:15.5]} 23. a3 {[%clk 0:01:09.3]} 23...
c5 {[%clk 0:02:09.6]} 24. Kh2 {[%clk 0:01:10.4]} 24... cxd4 {[%clk 0:02:01.1]}
25. Qxd4 {[%clk 0:01:10.9]} 25... Nxg3 {[%clk 0:01:59]} 26. Bxg3 {[%clk
0:01:12]} 26... Rxe2 {[%clk 0:01:59.3]} 27. Rf2 {[%clk 0:01:13.4]} 27... Rxc2
{[%clk 0:01:55.3]} 28. Rxc2 {[%clk 0:01:10.7]} 28... Bxc2 {[%clk 0:01:56]} 29.
bxc4 {[%clk 0:01:09.8]} 29... Qxc4 {[%clk 0:01:56.3]} 30. Qxa7 {[%clk
0:01:09.2]} 30... d4 {[%clk 0:01:52.8]} 31. Re1 {[%clk 0:01:08]} 31... h6 {[%clk
0:01:42.6]} 32. Qc7 {[%clk 0:01:08.5]} 32... Qxc7 {[%clk 0:01:42]} 33. Bxc7
{[%clk 0:01:10.4]} 33... Rd7 {[%clk 0:01:42.5]} 34. Re8+ {[%clk 0:01:05.6]}
34... Kh7 {[%clk 0:01:42.2]} 35. Ba5 {[%clk 0:01:07.5]} 35... d3 {[%clk
0:01:37.5]} 36. Bd2 {[%clk 0:01:06.7]} 36... Ra7 {[%clk 0:01:37.6]} 37. Bb4
{[%clk 0:01:04]} 37... Rb7 {[%clk 0:01:37.1]} 38. Rd8 {[%clk 0:01:03.2]} 38...
Rb5 {[%clk 0:01:31.7]} 39. Bd2 {[%clk 0:01:00]} 39... Re5 {[%clk 0:01:28.8]} 40.
Bb4 {[%clk 0:00:52.6]} 40... Re4 {[%clk 0:01:28.6]} 41. Rd6 {[%clk 0:00:50.2]}
41... f6 {[%clk 0:01:26.1]} 42. Rd7 {[%clk 0:00:48.7]} 42... Kg8 {[%clk
0:01:20.1]} 43. Kg3 {[%clk 0:00:47.4]} 43... Re6 {[%clk 0:01:05.2]} 44. Kf4
{[%clk 0:00:44.8]} 44... Re8 {[%clk 0:00:58.9]} 45. g4 {[%clk 0:00:44.7]} 45...
Rc8 {[%clk 0:00:51.1]} 46. Ke3 {[%clk 0:00:40.6]} 46... Re8+ {[%clk 0:00:50.2]}
47. Kf4 {[%clk 0:00:41.8]} 47... Re5 {[%clk 0:00:44.5]} 48. Bc3 {[%clk
0:00:31.9]} 48... Rb5 {[%clk 0:00:28.4]} 49. Ke3 {[%clk 0:00:29.7]} 49... h5
{[%clk 0:00:27.3]} 50. Kd2 {[%clk 0:00:26.7]} 50... hxg4 {[%clk 0:00:26.5]} 51.
hxg4 {[%clk 0:00:28.6]} 51... Rg5 {[%clk 0:00:26.9]} 52. Rd4 {[%clk 0:00:27.1]}
52... Kh7 {[%clk 0:00:26.3]} 53. a4 {[%clk 0:00:26.4]} 53... Re5 {[%clk
0:00:23.4]} 54. Rxd3 {[%clk 0:00:27.5]} 54... Bxd3 {[%clk 0:00:12.9]} 55. Bxe5
{[%clk 0:00:28.3]} 55... Ba6 {[%clk 0:00:10.1]} 56. Bf4 {[%clk 0:00:28.4]} 56...
g5 {[%clk 0:00:10.8]} 57. Bd6 {[%clk 0:00:28]} 57... Bc8 {[%clk 0:00:11.8]} 58.
Be7 {[%clk 0:00:21.9]} 58... Kg6 {[%clk 0:00:12.3]} 59. a5 {[%clk 0:00:22.7]}
59... Bxg4 {[%clk 0:00:13.6]} 60. a6 {[%clk 0:00:22.5]} 60... Bf3 {[%clk
0:00:14.8]} 61. Ke3 {[%clk 0:00:21.9]} 61... Ba8 {[%clk 0:00:14.5]} 62. a7
{[%clk 0:00:21.7]} 62... f5 {[%clk 0:00:15.8]} 63. Bd6 {[%clk 0:00:20.1]} 63...
Kh5 {[%clk 0:00:16.6]} 64. Kf2 {[%clk 0:00:20.8]} 64... Kg4 {[%clk 0:00:17.9]}
65. Be7 {[%clk 0:00:19.6]} 65... f4 {[%clk 0:00:19.1]} 66. Bd8 {[%clk
0:00:20.3]} 66... Kf5 {[%clk 0:00:20.3]} 67. Be7 {[%clk 0:00:20.3]} 67... g4
{[%clk 0:00:19]} 68. Bh4 {[%clk 0:00:21.1]} 68... Bb7 {[%clk 0:00:19.7]} 69. Kg1
{[%clk 0:00:06.4]} 69... Ke4 {[%clk 0:00:13.3]} 70. Kf2 {[%clk 0:00:06]} 70...
Ba8 {[%clk 0:00:14.1]} 71. Kg1 {[%clk 0:00:07.5]} 71... Kf3 {[%clk 0:00:14.8]}
72. Be1 {[%clk 0:00:07.1]} 72... g3 {[%clk 0:00:15]} 73. Bd2 {[%clk 0:00:06.9]}
73... Bb7 {[%clk 0:00:11.8]} 74. Be1 {[%clk 0:00:06.7]} 74... Ke2 {[%clk
0:00:11.2]} 75. Bxg3 {[%clk 0:00:05.6]} 75... fxg3 {[%clk 0:00:10.9]} 76. a8=Q
{[%clk 0:00:06.6]} 76... Bxa8 {[%clk 0:00:12.4]} 1/2-1/2

[Event "*** Titled Tuesday Blitz"]
[Site "Chess.com"]
[Date "2019.02.05"]
[Round "8"]
[White "AryanTari"]
[Black "NateSolon"]
[Result "1/2-1/2"]
[WhiteElo "2800"]
[BlackElo "2551"]
[TimeControl "180+2"]
[EndTime "15:00:21 PST"]
[Termination "Game drawn by agreement"]

1. c4 {[%clk 0:03:01.9]} 1... Nf6 {[%clk 0:02:59.9]} 2. Nc3 {[%clk 0:03:02.9]}
2... c6 {[%clk 0:03:01]} 3. e4 {[%clk 0:03:00.8]} 3... d5 {[%clk 0:03:02]} 4.
cxd5 {[%clk 0:03:00.8]} 4... cxd5 {[%clk 0:03:03.1]} 5. e5 {[%clk 0:03:02.4]}
5... Ne4 {[%clk 0:02:57.7]} 6. Nf3 {[%clk 0:03:02.9]} 6... Nc6 {[%clk
0:02:56.8]} 7. Be2 {[%clk 0:03:03.4]} 7... Bf5 {[%clk 0:02:54.6]} 8. d4 {[%clk
0:03:01.8]} 8... e6 {[%clk 0:02:54.1]} 9. O-O {[%clk 0:03:00.9]} 9... Be7 {[%clk
0:02:51.3]} 10. Be3 {[%clk 0:02:58.8]} 10... O-O {[%clk 0:02:50.3]} 11. Nxe4
{[%clk 0:02:55.3]} 11... Bxe4 {[%clk 0:02:49.2]} 12. Nd2 {[%clk 0:02:56.3]}
12... Bg6 {[%clk 0:02:48.8]} 13. a3 {[%clk 0:02:56.7]} 13... Rc8 {[%clk
0:02:45.9]} 14. b4 {[%clk 0:02:56.1]} 14... f6 {[%clk 0:02:40.9]} 15. f4 {[%clk
0:02:53.7]} 15... fxe5 {[%clk 0:02:39.1]} 16. fxe5 {[%clk 0:02:55.6]} 16...
Rxf1+ {[%clk 0:02:28]} 17. Bxf1 {[%clk 0:02:56.1]} 17... Bg5 {[%clk 0:02:21.2]}
18. Qe1 {[%clk 0:02:54]} 18... Bxe3+ {[%clk 0:02:13.9]} 19. Qxe3 {[%clk
0:02:55.9]} 19... Ne7 {[%clk 0:02:15.6]} 20. Nb3 {[%clk 0:02:56.2]} 20... Be4
{[%clk 0:02:00.9]} 21. Nc5 {[%clk 0:02:51.7]} 21... Nf5 {[%clk 0:02:00.7]} 22.
Qf2 {[%clk 0:02:52]} 22... b6 {[%clk 0:01:49.8]} 23. Nxe6 {[%clk 0:02:49.6]}
23... Qe7 {[%clk 0:01:47]} 24. Nf4 {[%clk 0:02:45.3]} 24... Rc2 {[%clk
0:01:47.7]} 25. Ne2 {[%clk 0:02:36.7]} 25... Qg5 {[%clk 0:01:44.4]} 26. Re1
{[%clk 0:02:32.6]} 26... Ne3 {[%clk 0:01:20.3]} 27. Qf4 {[%clk 0:02:09.3]} 27...
Qxf4 {[%clk 0:01:09.5]} 28. Nxf4 {[%clk 0:02:11.2]} 28... Nf5 {[%clk 0:01:09.5]}
29. Rd1 {[%clk 0:01:37]} 29... Ra2 {[%clk 0:01:01.4]} 30. Bd3 {[%clk 0:01:29.1]}
30... Ne3 {[%clk 0:00:52.9]} 31. Bxe4 {[%clk 0:01:27.8]} 31... dxe4 {[%clk
0:00:53.4]} 32. Re1 {[%clk 0:01:29]} 32... Rxa3 {[%clk 0:00:51.1]} 33. d5 {[%clk
0:01:18.8]} 33... g5 {[%clk 0:00:45.9]} 34. Ne6 {[%clk 0:01:20.1]} 34... Nxd5
{[%clk 0:00:44.6]} 35. Rxe4 {[%clk 0:01:15]} 35... Rb3 {[%clk 0:00:34]} 36. Rd4
{[%clk 0:01:12.7]} 36... Nxb4 {[%clk 0:00:26.6]} 37. Rd7 {[%clk 0:01:13.3]}
37... Nd3 {[%clk 0:00:22.6]} 38. h4 {[%clk 0:00:58.9]} 38... Nxe5 {[%clk
0:00:18.2]} 39. Rg7+ {[%clk 0:00:56.3]} 39... Kh8 {[%clk 0:00:18.9]} 40. Rxa7
{[%clk 0:00:58.2]} 40... h6 {[%clk 0:00:15.4]} 41. hxg5 {[%clk 0:00:49.9]} 41...
hxg5 {[%clk 0:00:17.3]} 42. Nxg5 {[%clk 0:00:49]} 42... Ng4 {[%clk 0:00:18.3]}
43. Kf1 {[%clk 0:00:48.4]} 43... Rb2 {[%clk 0:00:16.8]} 44. Ra3 {[%clk
0:00:40.7]} 44... Kg7 {[%clk 0:00:16.3]} 45. Rg3 {[%clk 0:00:42.2]} 45... Nf6
{[%clk 0:00:10.8]} 46. Re3 {[%clk 0:00:37.6]} 46... Kg6 {[%clk 0:00:07.6]} 47.
Ne6 {[%clk 0:00:38.7]} 47... b5 {[%clk 0:00:05.5]} 48. Nd4 {[%clk 0:00:33]}
48... b4 {[%clk 0:00:06.4]} 49. Re6 {[%clk 0:00:34.5]} 49... Kf7 {[%clk
0:00:07.2]} 50. Rb6 {[%clk 0:00:34.9]} 50... Ne4 {[%clk 0:00:08.3]} 51. Kg1
{[%clk 0:00:24.7]} 51... Nc3 {[%clk 0:00:08.7]} 52. Kh2 {[%clk 0:00:21.3]} 52...
Nd5 {[%clk 0:00:08.7]} 53. Rb7+ {[%clk 0:00:17.9]} 53... Kf6 {[%clk 0:00:09.4]}
54. Kg1 {[%clk 0:00:15.1]} 54... Ke5 {[%clk 0:00:10.1]} 55. Nf3+ {[%clk
0:00:15.1]} 55... Ke4 {[%clk 0:00:11.4]} 56. Ng5+ {[%clk 0:00:12.5]} 56... Kd3
{[%clk 0:00:11.1]} 57. Rd7 {[%clk 0:00:13.5]} 57... Kc4 {[%clk 0:00:12]} 58. Ne4
{[%clk 0:00:12.9]} 58... Ne3 {[%clk 0:00:11]} 59. g3 {[%clk 0:00:11.3]} 59... b3
{[%clk 0:00:10.8]} 60. Nd2+ {[%clk 0:00:10.6]} 60... Kc3 {[%clk 0:00:09.8]} 61.
Nxb3 {[%clk 0:00:11.9]} 61... Rxb3 {[%clk 0:00:10.2]} 62. Kf2 {[%clk 0:00:13.2]}
62... Nc4 {[%clk 0:00:09.1]} 63. Rd5 {[%clk 0:00:12.6]} 63... Kb4 {[%clk
0:00:08.7]} 64. g4 {[%clk 0:00:12.3]} 64... Nb6 {[%clk 0:00:09.4]} 65. Re5
{[%clk 0:00:12.3]} 65... Nc4 {[%clk 0:00:08.5]} 66. Re4 {[%clk 0:00:13.1]} 66...
Kc5 {[%clk 0:00:09.2]} 67. g5 {[%clk 0:00:14.6]} 67... Kd5 {[%clk 0:00:10.4]}
68. Re8 {[%clk 0:00:10.8]} 68... Ne5 {[%clk 0:00:11.6]} 69. Kg2 {[%clk
0:00:10.3]} 69... Ke4 {[%clk 0:00:10.8]} 70. g6 {[%clk 0:00:11.5]} 70... Rb6
{[%clk 0:00:11.7]} 71. Rg8 {[%clk 0:00:09.7]} 71... Nxg6 {[%clk 0:00:12.1]} 72.
Kg3 {[%clk 0:00:11.2]} 72... Ne5 {[%clk 0:00:13.4]} 73. Re8 {[%clk 0:00:12.1]}
73... Rb3+ {[%clk 0:00:14.3]} 74. Kf2 {[%clk 0:00:13.4]} 74... Rb2+ {[%clk
0:00:15.2]} 75. Ke1 {[%clk 0:00:14.1]} 75... Ra2 {[%clk 0:00:16.1]} 76. Kd1
{[%clk 0:00:15.5]} 76... Kd4 {[%clk 0:00:17.1]} 77. Rd8+ {[%clk 0:00:16.6]}
77... Ke3 {[%clk 0:00:18.1]} 78. Re8 {[%clk 0:00:17.1]} 78... Ke4 {[%clk
0:00:19.4]} 79. Re7 {[%clk 0:00:18]} 79... Rh2 {[%clk 0:00:19.1]} 80. Re8 {[%clk
0:00:18.1]} 80... Kd4 {[%clk 0:00:20.1]} 81. Rd8+ {[%clk 0:00:19.1]} 81... Ke3
{[%clk 0:00:21.4]} 82. Re8 {[%clk 0:00:19.2]} 82... Rh5 {[%clk 0:00:22.9]} 83.
Kc2 {[%clk 0:00:20]} 83... Kd4 {[%clk 0:00:23.3]} 84. Kb3 {[%clk 0:00:20]} 84...
Rh3+ {[%clk 0:00:24]} 85. Kc2 {[%clk 0:00:21.1]} 85... Re3 {[%clk 0:00:24.7]}
86. Rd8+ {[%clk 0:00:22.5]} 86... Ke4 {[%clk 0:00:25.7]} 87. Re8 {[%clk
0:00:23.7]} 87... Rh3 {[%clk 0:00:25.7]} 1/2-1/2